fUSD/lending_fUSD_20250308
["ID","MTS","AMOUNT","RATE_DAILY","PERIOD"]
[355646927,1741428637354,-500.0,8.219e-05,2]
[355646928,1741428637363,-17587.38,8.219e-05,2]
[355646929,1741428637373,-2133.44,8.219e-05,2]
[355646930,1741428637382,-500.0,8.219e-05,2]
[355646931,1741428637391,-3851.3,8.219e-05,2]
[355646932,1741428637400,-1815.45,8.219e-05,2]
[355646933,1741428637410,-500.0,8.219e-05,2]
[355646934,1741428637424,-500.0,8.219e-05,2]
[355646935,1741428637433,-533.72,8.219e-05,2]
[355646936,1741428637443,-2386.25,8.219e-05,2]
[355646937,1741428637452,-500.0,8.219e-05,2]
[355646938,1741428637463,-500.0,8.219e-05,2]
[355646939,1741428637472,-875.45,8.219e-05,2]
[355646940,1741428637482,-1452.18,8.219e-05,2]
[355646941,1741428637492,-1714.33,8.219e-05,2]
[355646942,1741428637503,-1518.41,8.219e-05,2]
[355646943,1741428637514,-4546.22,8.219e-05,2]
[355646944,1741428637523,-2473.09,8.219e-05,2]
[355646945,1741428637533,-500.0,8.219e-05,2]
[355646946,1741428637543,-3853.28,8.219e-05,2]
[355646947,1741428637554,-500.0,8.219e-05,2]
[355646948,1741428637565,-1167.14,8.219e-05,2]
[355646949,1741428637577,-500.0,8.219e-05,2]
[355646951,1741428637587,-2173.15,8.219e-05,2]
[355646953,1741428637597,-1127.17,8.219e-05,2]
[355646955,1741428637606,-501.00761401,8.219e-05,2]
[355646957,1741428637615,-3815.79,8.219e-05,2]
[355646959,1741428637624,-9212.87,8.219e-05,2]
[355646960,1741428637634,-1493.5,8.219e-05,2]
[355646961,1741428637643,-2640.05138576,8.219e-05,2]
[355646962,1741428637659,-2048.75861424,8.219e-05,2]
[355646963,1741428637669,-857.83,8.219e-05,2]
[355646964,1741428637679,-12992.49,8.219e-05,2]
[355646965,1741428637688,-500.0,8.219e-05,2]
[355646966,1741428637697,-3220.87,8.219e-05,2]
[355646967,1741428637707,-500.0,8.219e-05,2]
[355646968,1741428637717,-1686.65,8.219e-05,2]
[355646969,1741428637727,-8909.55,8.219e-05,2]
[355646970,1741428637736,-500.0,8.219e-05,2]
[355646971,1741428637746,-3357.01,8.219e-05,2]
[355646972,1741428637755,-426.84138576,8.219e-05,2]
[355646973,1741428637767,-2599.93861424,8.219e-05,2]
[355646974,1741428637776,-4255.3,8.219e-05,2]
[355646975,1741428637785,-4314.93,8.219e-05,2]
[355646976,1741428637794,-1289.64,8.219e-05,2]
[355646977,1741428637804,-2074.0,8.219e-05,2]
[355646978,1741428637814,-2646.25,8.219e-05,2]
[355646979,1741428637823,-505.15104061,8.219e-05,2]
[355646980,1741428637833,-1923.53,8.219e-05,2]
[355646981,1741428637842,-1084.89,8.219e-05,2]
[355646982,1741428637851,-500.0,8.219e-05,2]
[355646983,1741428637860,-927.0,8.219e-05,2]
[355646984,1741428637869,-1128.2,8.219e-05,2]
[355646985,1741428637878,-1126.45,8.219e-05,2]
[355646986,1741428637887,-500.0,8.219e-05,2]
[355646987,1741428637896,-42196.76,8.219e-05,2]
[355646988,1741428637905,-15910.89,8.219e-05,2]
[355646989,1741428637914,-1910.94,8.219e-05,2]
[355646990,1741428637923,-1910.94,8.219e-05,2]
[355646991,1741428637933,-1910.94,8.219e-05,2]
[355646992,1741428637942,-1281.44,8.219e-05,2]
[355646993,1741428637952,-160.0,8.219e-05,3]
[355646994,1741428637961,-1756.12,8.219e-05,2]
[355646995,1741428637971,-1314.48,8.219e-05,2]
[355646996,1741428637980,-651.59,8.219e-05,2]
[355646997,1741428637989,-505.45908108,8.219e-05,2]
[355646998,1741428637999,-2501.6,8.219e-05,2]
[355646999,1741428638009,-734.65,8.219e-05,2]
[355647000,1741428638019,-2005.32,8.219e-05,2]
[355647001,1741428638028,-812.79,8.219e-05,2]
[355647002,1741428638037,-645.58562675,8.219e-05,2]
[355647003,1741428638047,-934.83,8.219e-05,2]
[355647004,1741428638057,-500.0,8.219e-05,2]
[355647005,1741428638066,-480.38563732,8.219e-05,2]
[355647006,1741428638078,-856.33436268,8.219e-05,2]
[355647007,1741428638087,-649.36,8.219e-05,2]
[355647008,1741428638097,-8980.43,8.219e-05,2]
[355647011,1741428638107,-769.17,8.219e-05,2]
[355647013,1741428638116,-205.89804,8.219e-05,2]
[355647015,1741428638126,-1004.17,8.219e-05,2]
[355647017,1741428638135,-6850.45,8.219e-05,2]
[355647019,1741428638144,-2433.28,8.219e-05,2]
[355647021,1741428638153,-1182.36,8.219e-05,2]
[355647023,1741428638162,-392.53367732,8.219e-05,2]
[355647133,1741428639308,-204.63460583,8.219e-05,2]
[355647135,1741428639319,-1537.43244732,8.219e-05,2]
[355647137,1741428639330,-534.23755268,8.219e-05,2]
[355647139,1741428639339,-1659.53,8.219e-05,2]
[355647141,1741428639348,-187.3111549,8.219e-05,2]
[355647143,1741428639357,-532.13566886,8.219e-05,2]
[355647145,1741428639367,-426.02,8.219e-05,2]
[355647147,1741428639377,-250.0,8.219e-05,2]
[355647149,1741428639387,-1294.75,8.219e-05,2]
[355647151,1741428639396,-152.726405,8.219e-05,2]
[355647153,1741428639405,-1500.0,8.219e-05,2]
[355647155,1741428639415,-1000.0,8.219e-05,2]
[355647156,1741428639425,-1000.0,8.219e-05,2]
[355647159,1741428639435,-1000.0,8.219e-05,2]
[355647160,1741428639445,-1000.0,8.219e-05,2]
[355647162,1741428639454,-1000.0,8.219e-05,2]
[355647164,1741428639468,-1000.0,8.219e-05,2]
[355647167,1741428639477,-1000.0,8.219e-05,2]
[355647169,1741428639487,-1000.0,8.219e-05,2]
[355647170,1741428639498,-1000.0,8.219e-05,2]
[355647172,1741428639507,-1000.0,8.219e-05,2]
[355647175,1741428639517,-716.88921857,8.219e-05,2]
[355647177,1741428639528,-283.11078143,8.219e-05,2]
[355647179,1741428639537,-1000.0,8.219e-05,2]
[355647181,1741428639546,-1000.0,8.219e-05,2]
[355647183,1741428639555,-1000.0,8.219e-05,2]
[355647185,1741428639565,-1000.0,8.219e-05,2]
[355647186,1741428639574,-1000.0,8.219e-05,2]
[355647188,1741428639584,-70.00090385,8.219e-05,2]
[355647225,1741428639924,-338.06224798,8.219e-05,2]
[355647231,1741428639973,-161.93775202,8.219e-05,2]
[355647233,1741428639983,-929.99909615,8.219e-05,2]
[355647235,1741428639992,-1000.0,8.219e-05,2]
[355647236,1741428640004,-1000.0,8.219e-05,2]
[355647238,1741428640018,-1000.0,8.219e-05,2]
[355647240,1741428640028,-1000.0,8.219e-05,2]
[355647242,1741428640037,-1000.0,8.219e-05,2]
[355647244,1741428640046,-1000.0,8.219e-05,2]
[355647246,1741428640055,-1000.0,8.219e-05,2]
[355647248,1741428640064,-1000.0,8.219e-05,2]
[355647250,1741428640074,-1000.0,8.219e-05,2]
[355647252,1741428640083,-1000.0,8.219e-05,2]
[355647254,1741428640092,-1000.0,8.219e-05,2]
[355647256,1741428640101,-1000.0,8.219e-05,2]
[355647258,1741428640111,-1000.0,8.219e-05,2]
[355647260,1741428640120,-1000.0,8.219e-05,2]
[355647262,1741428640130,-1000.0,8.219e-05,2]
[355647264,1741428640139,-1000.0,8.219e-05,2]
[355647265,1741428640149,-1000.0,8.219e-05,2]
[355647266,1741428640158,-1000.0,8.219e-05,2]
[355647267,1741428640167,-1000.0,8.219e-05,2]
[355647268,1741428640177,-1000.0,8.219e-05,2]
[355647269,1741428640186,-1000.0,8.219e-05,2]
[355647270,1741428640196,-1000.0,8.219e-05,2]
[355647271,1741428640206,-1000.0,8.219e-05,2]
[355647272,1741428640215,-1000.0,8.219e-05,2]
[355647273,1741428640224,-1000.0,8.219e-05,2]
[355647274,1741428640233,-1000.0,8.219e-05,2]
[355647275,1741428640242,-1000.0,8.219e-05,2]
[355647276,1741428640251,-1000.0,8.219e-05,2]
[355647277,1741428640260,-1000.0,8.219e-05,2]
[355647278,1741428640269,-1000.0,8.219e-05,2]
[355647279,1741428640279,-1000.0,8.219e-05,2]
[355647280,1741428640291,-1000.0,8.219e-05,2]
[355647281,1741428640300,-1000.0,8.219e-05,2]
[355647282,1741428640309,-1000.0,8.219e-05,2]
[355647283,1741428640319,-1056.14,8.219e-05,2]
[355647284,1741428640329,-6993.48346736,8.219e-05,2]
[355647285,1741428640340,-2330.9286,8.219e-05,2]
[355647304,1741428643979,-548.44,8.219e-05,2]
[355647305,1741428643988,-992.61410853,8.219e-05,2]
[355647306,1741428644041,-81.03589147,8.219e-05,2]
[355647307,1741428644050,-2039.26890619,8.219e-05,2]
[355647309,1741428646084,-958.20679999,8.219e-05,2]
[355647311,1741428646112,-3799.23429382,8.219e-05,2]
[355647312,1741428646121,-180.04876772,8.219e-05,2]
[355647313,1741428646133,-2210.52123228,8.219e-05,2]
[355647314,1741428646142,-3103.63,8.219e-05,2]
[355647315,1741428646152,-5123.09793264,8.219e-05,2]
[355647316,1741428646162,-168.24,8.264e-05,2]
[355647317,1741428646171,-1000.0,8.27e-05,2]
[355647318,1741428646181,-441.59,8.329e-05,2]
[355647319,1741428646190,-441.59,8.329e-05,2]
[355647320,1741428646201,-606.0,8.384e-05,2]
[355647321,1741428646210,-209.36,8.459e-05,2]
[355647322,1741428646220,-1000.0,8.47e-05,2]
[355647323,1741428646229,-571.0,8.484e-05,2]
[355647324,1741428646238,-1459.0,8.484e-05,2]
[355647325,1741428646247,-150.0,8.484e-05,2]
[355647326,1741428646256,-641.0,8.484e-05,2]
[355647327,1741428646265,-786.0,8.484e-05,2]
[355647328,1741428646275,-907.0,8.484e-05,2]
[355647329,1741428646284,-1427.0,8.484e-05,2]
[355647330,1741428646294,-541.0,8.484e-05,2]
[355647331,1741428646304,-1269.0,8.484e-05,2]
[355647332,1741428646313,-4076.0,8.484e-05,2]
[355647333,1741428646322,-150.0,8.485e-05,2]
[355647334,1741428646331,-3931.0,8.485e-05,2]
[355647335,1741428646341,-652.334,8.485e-05,2]
[355647336,1741428646350,-272.692,8.49e-05,2]
[355647337,1741428646359,-150.0,8.49e-05,2]
[355647338,1741428646368,-165.917,8.49e-05,2]
[355647339,1741428646378,-160.027,8.49e-05,2]
[355647340,1741428646389,-169.428,8.49e-05,2]
[355647341,1741428646398,-151.688,8.49e-05,2]
[355647342,1741428646408,-155.34,8.49e-05,2]
[355647343,1741428646418,-1316.91235152,8.49e-05,2]
[355647344,1741428646439,-506.17473656,8.49e-05,2]
[355647345,1741428646463,-208.91291192,8.49e-05,2]
[355647346,1741428646473,-1176.31569199,8.49e-05,2]
[355647347,1741428646484,-101.68430801,8.49e-05,2]
[355647348,1741428646494,-1248.81683572,8.492e-05,3]
[355647349,1741428646503,-297.26594485,8.492e-05,2]
[355647367,1741428983984,272.5494626,8.219e-05,120]
[355647376,1741429042435,1000.0,0.0002011,120]
[355647377,1741429042798,1000.0,0.0002011,120]
[355647378,1741429043155,1000.0,0.0002011,120]
[355647379,1741429043469,1000.0,0.0002011,120]
[355647380,1741429043821,1000.0,0.0002011,120]
[355647381,1741429044396,1000.0,0.0002011,120]
[355647382,1741429044450,1000.0,0.0002011,120]
[355647383,1741429045422,1000.0,0.0002011,120]
[355647384,1741429045724,1000.0,0.0002011,120]
[355647385,1741429138872,326.54,7.783e-05,2]
[355647389,1741429432540,1185.01241,8.081e-05,2]
[355647397,1741429629669,2500.0,7.9e-05,2]
[355647398,1741429632016,5100.0,8e-05,2]
[355647469,1741429825694,1430.86726116,7.918e-05,2]
[355647470,1741429825804,1430.86726116,7.973e-05,2]
[355647471,1741429825921,1430.86726116,8e-05,2]
[355647472,1741429826023,1430.86726116,8.055e-05,2]
[355647484,1741429832044,-1151.55012815,8.082e-05,2]
[355647485,1741429832056,-279.31713301,8.082e-05,2]
[355647486,1741429832065,-360.77286707,8.11e-05,2]
[355647487,1741429832076,-256.7011023,8.11e-05,2]
[355647488,1741429832087,-254.46,8.11e-05,2]
[355647489,1741429832134,-558.93329179,8.11e-05,2]
[355647490,1741429832143,-1430.86726116,8.164e-05,2]
[355647491,1741429832152,-40.08379721,8.192e-05,2]
[355647492,1741429832164,-1390.78346395,8.192e-05,2]
[355647493,1741429832174,-300.0,8.217e-05,2]
[355647494,1741429832189,-550.0,8.218e-05,2]
[355647495,1741429832199,-150.0,8.218e-05,2]
[355647496,1741429832208,-500.0,8.218e-05,2]
[355647497,1741429832219,-500.0,8.218e-05,2]
[355647498,1741429832229,-500.0,8.218e-05,2]
[355647499,1741429832239,-500.0,8.218e-05,2]
[355647500,1741429832249,-354.03666617,8.218e-05,2]
[355647501,1741429832258,-500.0,8.218e-05,2]
[355647502,1741429832268,-174.287,8.218e-05,2]
[355647503,1741429832277,-1702.369,8.218e-05,2]
[355647504,1741429832287,-339.43085174,8.218e-05,2]
[355647505,1741429832296,-150.0,8.218e-05,2]
[355647506,1741429832306,-463.29661,8.219e-05,2]
[355647507,1741429832316,-721.839163,8.219e-05,2]
[355647508,1741429832326,-567.25,8.219e-05,2]
[355647509,1741429832335,-500.0,8.219e-05,2]
[355647510,1741429832345,-500.0,8.219e-05,2]
[355647511,1741429832355,-500.0,8.219e-05,2]
[355647513,1741429832365,-500.0,8.219e-05,2]
[355647515,1741429832374,-500.0,8.219e-05,2]
[355647517,1741429832385,-500.0,8.219e-05,2]
[355647519,1741429832395,-84.87266241,8.219e-05,2]
[355647521,1741429832408,-415.12733759,8.219e-05,2]
[355647523,1741429832417,-500.0,8.219e-05,2]
[355647525,1741429832427,-917.19,8.219e-05,2]
[355647527,1741429832436,-126.52491739,8.219e-05,2]
[355647553,1741429838161,-373.47508261,8.219e-05,2]
[355647554,1741429838170,-567.96,8.219e-05,2]
[355647555,1741429838180,-500.0,8.219e-05,2]
[355647556,1741429838189,-500.0,8.219e-05,2]
[355647557,1741429838199,-500.0,8.219e-05,2]
[355647558,1741429838211,-604.87,8.219e-05,2]
[355647559,1741429838222,-500.0,8.219e-05,2]
[355647560,1741429838233,-500.0,8.219e-05,2]
[355647561,1741429838243,-553.97,8.219e-05,2]
[355647562,1741429838252,-494.2654162,8.219e-05,2]
[355647563,1741429838262,-783.11,8.219e-05,2]
[355647564,1741429838272,-778.57,8.219e-05,2]
[355647565,1741429838282,-269.31167514,8.219e-05,2]
[355647566,1741429838293,-525.33,8.219e-05,2]
[355647567,1741429838303,-500.0,8.219e-05,2]
[355647568,1741429838312,-205.3890122,8.219e-05,2]
[355647581,1741429840170,-66.58460277,8.219e-05,2]
[355647582,1741429840180,-460.9705985,8.219e-05,2]
[355647583,1741429840406,-54.6294015,8.219e-05,2]
[355647584,1741429840417,-346.81274474,8.219e-05,2]
[355647585,1741429840429,-153.18725526,8.219e-05,2]
[355647586,1741429840440,-674.6,8.219e-05,2]
[355647587,1741429840449,-10.63318212,8.219e-05,2]
[355647588,1741429840584,-677.80681788,8.219e-05,2]
[355647589,1741429840594,-500.0,8.219e-05,2]
[355647590,1741429840603,-500.0,8.219e-05,2]
[355647591,1741429840612,-500.0,8.219e-05,2]
[355647592,1741429840622,-775.47,8.219e-05,2]
[355647593,1741429840631,-557.37,8.219e-05,2]
[355647594,1741429840641,-500.0,8.219e-05,2]
[355647595,1741429840650,-500.0,8.219e-05,2]
[355647596,1741429840660,-500.0,8.219e-05,2]
[355647597,1741429840669,-236.87307442,8.219e-05,2]
[355647598,1741429840687,-263.12692558,8.219e-05,2]
[355647599,1741429840697,-500.0,8.219e-05,2]
[355647600,1741429840707,-500.0,8.219e-05,2]
[355647601,1741429840716,-525.71,8.219e-05,2]
[355647602,1741429840726,-500.0,8.219e-05,2]
[355647603,1741429840736,-393.69076963,8.219e-05,2]
[355647604,1741429840745,-500.0,8.219e-05,2]
[355647605,1741429840755,-500.0,8.219e-05,2]
[355647606,1741429840764,-725.84,8.219e-05,2]
[355647607,1741429840774,-500.0,8.219e-05,2]
[355647608,1741429840784,-265.11403448,8.219e-05,2]
[355647711,1741429844517,-251.42596552,8.219e-05,2]
[355647712,1741429844526,-612.18678448,8.219e-05,2]
[355647713,1741429844536,-122.62321552,8.219e-05,2]
[355647714,1741429844546,-446.06991448,8.219e-05,2]
[355647715,1741429844557,-151.95666429,8.219e-05,2]
[355647716,1741429844566,-506.74,8.219e-05,2]
[355647717,1741429844575,-420.32333571,8.219e-05,2]
[355647718,1741429844585,-79.67666429,8.219e-05,2]
[355647719,1741429844594,-673.8,8.219e-05,2]
[355647720,1741429844604,-500.0,8.219e-05,2]
[355647721,1741429844615,-306.12450578,8.219e-05,2]
[355647722,1741429844624,-500.0,8.219e-05,2]
[355647723,1741429844634,-422.50322595,8.219e-05,2]
[355647724,1741429844645,-500.0,8.219e-05,2]
[355647725,1741429844655,-703.57,8.219e-05,2]
[355647726,1741429844666,-500.0,8.219e-05,2]
[355647727,1741429844676,-500.0,8.219e-05,2]
[355647728,1741429844688,-574.73,8.219e-05,2]
[355647729,1741429844698,-564.76,8.219e-05,2]
[355647730,1741429844709,-500.0,8.219e-05,2]
[355647731,1741429844719,-500.0,8.219e-05,2]
[355647732,1741429844729,-500.0,8.219e-05,2]
[355647733,1741429844739,-728.62,8.219e-05,2]
[355647734,1741429844749,-669.62,8.219e-05,2]
[355647735,1741429844758,-645.88,8.219e-05,2]
[355647736,1741429844768,-642.76,8.219e-05,2]
[355647737,1741429844777,-661.2,8.219e-05,2]
[355647738,1741429844788,-689.14,8.219e-05,2]
[355647739,1741429844798,-810.33,8.219e-05,2]
[355647740,1741429844808,-810.11,8.219e-05,2]
[355647741,1741429844818,-500.0,8.219e-05,2]
[355647742,1741429844827,-500.0,8.219e-05,2]
[355647743,1741429844836,-722.92,8.219e-05,2]
[355647744,1741429844846,-1089.44,8.219e-05,2]
[355647745,1741429844855,-597.64,8.219e-05,2]
[355647746,1741429844864,-500.0,8.219e-05,2]
[355647747,1741429844873,-500.0,8.219e-05,2]
[355647748,1741429844882,-643.39,8.219e-05,2]
[355647749,1741429844892,-500.0,8.219e-05,2]
[355647750,1741429844902,-909.73,8.219e-05,2]
[355647751,1741429844910,-591.11,8.219e-05,2]
[355647752,1741429844919,-175.29045356,8.219e-05,2]
[355647753,1741429844928,-500.0,8.219e-05,2]
[355647754,1741429844938,-500.0,8.219e-05,2]
[355647755,1741429844947,-846.41,8.219e-05,2]
[355647756,1741429844956,-1198.2,8.219e-05,2]
[355647757,1741429844965,-970.52,8.219e-05,2]
[355647758,1741429844975,-500.0,8.219e-05,2]
[355647759,1741429844984,-593.34,8.219e-05,2]
[355647760,1741429844994,-500.0,8.219e-05,2]
[355647761,1741429845003,-692.32,8.219e-05,2]
[355647762,1741429845012,-659.23,8.219e-05,2]
[355647763,1741429845022,-546.85,8.219e-05,2]
[355647764,1741429845033,-500.0,8.219e-05,2]
[355647765,1741429845043,-500.0,8.219e-05,2]
[355647766,1741429845052,-500.0,8.219e-05,2]
[355647767,1741429845061,-725.86,8.219e-05,2]
[355647768,1741429845071,-1057.66,8.219e-05,2]
[355647769,1741429845080,-500.0,8.219e-05,2]
[355647770,1741429845090,-607.53,8.219e-05,2]
[355647771,1741429845099,-600.7,8.219e-05,2]
[355647772,1741429845109,-340.21806809,8.219e-05,2]
[355647773,1741429845118,-500.0,8.219e-05,2]
[355647774,1741429845128,-500.0,8.219e-05,2]
[355647775,1741429845138,-566.28,8.219e-05,2]
[355647776,1741429845147,-567.2,8.219e-05,2]
[355647777,1741429845157,-735.16,8.219e-05,2]
[355647778,1741429845166,-625.87,8.219e-05,2]
[355647779,1741429845175,-712.8,8.219e-05,2]
[355647780,1741429845184,-1190.49,8.219e-05,2]
[355647781,1741429845193,-531.24,8.219e-05,2]
[355647782,1741429845203,-500.0,8.219e-05,2]
[355647783,1741429845212,-544.07,8.219e-05,2]
[355647784,1741429845221,-553.41,8.219e-05,2]
[355647785,1741429845231,-909.98,8.219e-05,2]
[355647786,1741429845241,-500.0,8.219e-05,2]
[355647787,1741429845250,-500.0,8.219e-05,2]
[355647788,1741429845260,-639.71,8.219e-05,2]
[355647789,1741429845269,-694.9,8.219e-05,2]
[355647790,1741429845278,-500.0,8.219e-05,2]
[355647791,1741429845287,-1392.41,8.219e-05,2]
[355647792,1741429845296,-500.0,8.219e-05,2]
[355647793,1741429845307,-984.12,8.219e-05,2]
[355647794,1741429845316,-500.0,8.219e-05,2]
[355647795,1741429845325,-676.02,8.219e-05,2]
[355647796,1741429845335,-691.34,8.219e-05,2]
[355647797,1741429845344,-787.89,8.219e-05,2]
[355647798,1741429845354,-599.53,8.219e-05,2]
[355647799,1741429845363,-611.38,8.219e-05,2]
[355647800,1741429845373,-609.19,8.219e-05,2]
[355647801,1741429845382,-500.0,8.219e-05,2]
[355647802,1741429845391,-1989.43,8.219e-05,2]
[355647803,1741429845400,-500.0,8.219e-05,2]
[355647804,1741429845409,-866.71,8.219e-05,2]
[355647805,1741429845419,-500.0,8.219e-05,2]
[355647806,1741429845429,-1269.42,8.219e-05,2]
[355647807,1741429845438,-744.87,8.219e-05,2]
[355647808,1741429845447,-500.0,8.219e-05,2]
[355647809,1741429845456,-500.0,8.219e-05,2]
[355647810,1741429845466,-719.41,8.219e-05,2]
[355647811,1741429845475,-806.15,8.219e-05,2]
[355647812,1741429845484,-901.37,8.219e-05,2]
[355647813,1741429845494,-952.95,8.219e-05,2]
[355647814,1741429845504,-732.94,8.219e-05,2]
[355647815,1741429845513,-890.01,8.219e-05,2]
[355647816,1741429845522,-695.36,8.219e-05,2]
[355647817,1741429845531,-849.55,8.219e-05,2]
[355647818,1741429845540,-936.57,8.219e-05,2]
[355647819,1741429845550,-518.76,8.219e-05,2]
[355647820,1741429845559,-500.0,8.219e-05,2]
[355647821,1741429845568,-500.0,8.219e-05,2]
[355647822,1741429845578,-500.0,8.219e-05,2]
[355647823,1741429845587,-972.83,8.219e-05,2]
[355647824,1741429845596,-500.0,8.219e-05,2]
[355647825,1741429845606,-703.05,8.219e-05,2]
[355647826,1741429845616,-687.88,8.219e-05,2]
[355647827,1741429845625,-500.0,8.219e-05,2]
[355647828,1741429845635,-500.0,8.219e-05,2]
[355647829,1741429845644,-528.02,8.219e-05,2]
[355647830,1741429845654,-500.0,8.219e-05,2]
[355647831,1741429845663,-500.0,8.219e-05,2]
[355647832,1741429845672,-500.0,8.219e-05,2]
[355647833,1741429845681,-1282.75,8.219e-05,2]
[355647834,1741429845690,-500.0,8.219e-05,2]
[355647835,1741429845699,-566.59,8.219e-05,2]
[355647836,1741429845709,-500.0,8.219e-05,2]
[355647837,1741429845718,-740.85,8.219e-05,2]
[355647838,1741429845728,-270.35708233,8.219e-05,2]
[355647839,1741429845743,-573.49291767,8.219e-05,2]
[355647840,1741429845753,-46.54832272,8.219e-05,2]
[355647843,1741429846723,-997.03167728,8.219e-05,2]
[355647844,1741429846733,-500.0,8.219e-05,2]
[355647845,1741429846744,-552.24540507,8.219e-05,2]
[355647846,1741429846756,-72.69459493,8.219e-05,2]
[355647847,1741429846766,-1197.56,8.219e-05,2]
[355647848,1741429846777,-522.14,8.219e-05,2]
[355647849,1741429846787,-500.0,8.219e-05,2]
[355647850,1741429846796,-500.0,8.219e-05,2]
[355647851,1741429846812,-532.48,8.219e-05,2]
[355647852,1741429846821,-511.48,8.219e-05,2]
[355647853,1741429846831,-500.0,8.219e-05,2]
[355647854,1741429846843,-500.0,8.219e-05,2]
[355647855,1741429846853,-500.0,8.219e-05,2]
[355647856,1741429846865,-500.0,8.219e-05,2]
[355647857,1741429846875,-1091.11,8.219e-05,2]
[355647858,1741429846886,-500.0,8.219e-05,2]
[355647859,1741429846895,-543.52,8.219e-05,2]
[355647860,1741429846905,-841.27,8.219e-05,2]
[355647861,1741429846914,-527.66,8.219e-05,2]
[355647862,1741429846923,-622.31,8.219e-05,2]
[355647863,1741429846932,-930.72,8.219e-05,2]
[355647864,1741429846942,-545.4,8.219e-05,2]
[355647865,1741429846951,-1310.17,8.219e-05,2]
[355647866,1741429846960,-877.18540507,8.219e-05,2]
[355647867,1741429846973,-400.30459493,8.219e-05,2]
[355647868,1741429846982,-300.48108523,8.219e-05,2]
[355647869,1741429846994,-199.51891477,8.219e-05,2]
[355647870,1741429847003,-478.94304884,8.219e-05,2]
[355647871,1741429847015,-377.39695116,8.219e-05,2]
[355647872,1741429847024,-500.0,8.219e-05,2]
[355647873,1741429847034,-877.42,8.219e-05,2]
[355647874,1741429847043,-500.0,8.219e-05,2]
[355647875,1741429847052,-500.0,8.219e-05,2]
[355647876,1741429847061,-869.7,8.219e-05,2]
[355647877,1741429847071,-537.92,8.219e-05,2]
[355647878,1741429847080,-833.25525447,8.219e-05,2]
[355647879,1741429847097,-317.77728,8.219e-05,2]
[355647880,1741430296907,223.4304439,0.00020111,120]
[355647881,1741430300668,265.78,7.51e-05,2]
[355647882,1741430319985,164.64,7.479e-05,2]
[355647883,1741430320191,164.64,7.503e-05,2]
[355647884,1741430320408,164.64,7.526e-05,2]
[355647885,1741430320600,164.64,7.55e-05,2]
[355647886,1741430320801,164.64,7.574e-05,2]
[355647887,1741430320998,164.64,7.597e-05,2]
[355647888,1741430321196,164.64,7.621e-05,2]
[355647889,1741430321694,164.64,7.644e-05,2]
[355647890,1741430321910,164.64,7.668e-05,2]
[355647891,1741430322095,164.64,7.692e-05,2]
[355647892,1741430322293,164.64,7.715e-05,2]
[355647893,1741430322481,164.64,7.739e-05,2]
[355647894,1741430322882,164.64,7.762e-05,2]
[355647895,1741430323097,164.64,7.786e-05,2]
[355647896,1741430323309,164.64,7.81e-05,2]
[355647897,1741430323529,164.64,7.833e-05,2]
[355647898,1741430323723,164.64,7.857e-05,2]
[355647899,1741430324530,164.64,7.881e-05,2]
[355647900,1741430324621,164.64,7.904e-05,2]
[355647901,1741430324682,164.64,7.928e-05,2]
[355647903,1741430510547,909.86557057,7.9e-05,2]
[355647921,1741430843467,2200.0,7.9e-05,2]
[355647922,1741430845444,4400.0,8e-05,2]
[355647951,1741431032114,-1108.8356,8.119e-05,2]
[355647952,1741431032124,-500.0,8.119e-05,2]
[355647953,1741431032134,-150.0,8.121e-05,2]
[355647954,1741431032145,-150.0,8.143e-05,2]
[355647955,1741431032155,-135.33488353,8.178e-05,2]
[355647956,1741431032167,-695.95833047,8.178e-05,2]
[355647957,1741431032176,-560.53698294,8.209e-05,2]
[355647958,1741431032186,-1361.895,8.218e-05,2]
[355647959,1741431032195,-150.0,8.218e-05,2]
[355647960,1741431032205,-300.0,8.218e-05,2]
[355647961,1741431032216,-615.97,8.219e-05,2]
[355647962,1741431032229,-717.08,8.219e-05,2]
[355647963,1741431032239,-500.0,8.219e-05,2]